fUSD/lending_fUSD_20260625
["ID","MTS","AMOUNT","RATE_DAILY","PERIOD"]
[426391265,1782340239000,-500.0,0.00013698,2]
[426391259,1782340239000,-500.0,0.00013698,2]
[426391261,1782340239000,-500.0,0.00013698,2]
[426391285,1782340239000,-500.0,0.00013698,2]
[426391278,1782340239000,-500.0,0.00013698,2]
[426391267,1782340239000,-500.0,0.00013698,2]
[426391268,1782340239000,-500.0,0.00013698,2]
[426391271,1782340239000,-500.0,0.00013698,2]
[426391272,1782340239000,-500.0,0.00013698,2]
[426391258,1782340239000,-500.0,0.00013698,2]
[426391270,1782340239000,-500.0,0.00013698,2]
[426391269,1782340239000,-500.0,0.00013698,2]
[426391283,1782340239000,-500.0,0.00013698,2]
[426391282,1782340239000,-500.0,0.00013698,2]
[426391287,1782340239000,-500.0,0.00013698,2]
[426391284,1782340239000,-500.0,0.00013698,2]
[426391279,1782340239000,-500.0,0.00013698,2]
[426391280,1782340239000,-500.0,0.00013698,2]
[426391274,1782340239000,-500.0,0.00013698,2]
[426391275,1782340239000,-500.0,0.00013698,2]
[426391276,1782340239000,-500.0,0.00013698,2]
[426391277,1782340239000,-500.0,0.00013698,2]
[426391273,1782340239000,-500.0,0.00013698,2]
[426391281,1782340239000,-500.0,0.00013698,2]
[426391364,1782340240000,-500.0,0.00014999,2]
[426391361,1782340240000,-500.0,0.00014999,2]
[426391359,1782340240000,-265.26691953,0.0001499,2]
[426391363,1782340240000,-500.0,0.00014999,2]
[426391356,1782340240000,-1711.45766129,0.000149,2]
[426391352,1782340240000,-151.0,0.000149,2]
[426391354,1782340240000,-5800.0,0.000149,2]
[426391348,1782340240000,-200.0,0.0001488,2]
[426391347,1782340240000,-5800.0,0.00014874,2]
[426391344,1782340240000,-500.0,0.00014857,2]
[426391355,1782340240000,-424.52049941,0.000149,2]
[426391357,1782340240000,-200.91260116,0.000149,2]
[426391375,1782340240000,-642.72,0.00014999,2]
[426391353,1782340240000,-10082.10195039,0.000149,3]
[426391360,1782340240000,-265.26691953,0.0001499,2]
[426391358,1782340240000,-162.41879737,0.000149,2]
[426391366,1782340240000,-500.0,0.00014999,2]
[426391376,1782340240000,-500.0,0.00014999,2]
[426391365,1782340240000,-500.0,0.00014999,2]
[426391367,1782340240000,-504.53454396,0.00014999,2]
[426391369,1782340240000,-448.76706005,0.00014999,2]
[426391368,1782340240000,-500.0,0.00014999,2]
[426391370,1782340240000,-500.0,0.00014999,2]
[426391371,1782340240000,-500.0,0.00014999,2]
[426391373,1782340240000,-500.0,0.00014999,2]
[426391345,1782340240000,-5800.0,0.00014858,2]
[426391362,1782340240000,-500.0,0.00014999,2]
[426391342,1782340240000,-5800.0,0.00014849,2]
[426391334,1782340240000,-1711.45766129,0.00014367,2]
[426391346,1782340240000,-5800.0,0.00014866,2]
[426391374,1782340240000,-500.0,0.00014999,2]
[426391317,1782340240000,-1711.45766129,0.00013834,2]
[426391320,1782340240000,-274.0,0.00013972,2]
[426391318,1782340240000,-200.91260116,0.00013872,2]
[426391319,1782340240000,-162.47,0.00013918,2]
[426391324,1782340240000,-166.66,0.00014001,2]
[426391321,1782340240000,-60000.0,0.0001399,2]
[426391323,1782340240000,-3019.531146,0.00014,2]
[426391322,1782340240000,-250.0,0.00014,2]
[426391326,1782340240000,-424.52049941,0.00014101,2]
[426391327,1782340240000,-200.91260116,0.00014129,2]
[426391337,1782340240000,-200.0,0.00014493,2]
[426391328,1782340240000,-1178.00238394,0.00014159,2]
[426391336,1782340240000,-200.91260116,0.00014386,2]
[426391335,1782340240000,-194.01,0.00014382,2]
[426391329,1782340240000,-7196.64457979,0.00014159,2]
[426391330,1782340240000,-1155.58666498,0.00014159,2]
[426391332,1782340240000,-1711.45766129,0.00014189,2]
[426391338,1782340240000,-500.0,0.00014499,2]
[426391331,1782340240000,-1624.11926312,0.00014159,2]
[426391339,1782340240000,-1711.45766129,0.00014545,2]
[426391333,1782340240000,-255.0,0.00014306,2]
[426391341,1782340240000,-1711.45766129,0.00014722,2]
[426391340,1782340240000,-200.91260116,0.00014643,2]
[426391350,1782340240000,-5800.0,0.00014891,2]
[426391349,1782340240000,-5800.0,0.00014883,2]
[426391351,1782340240000,-584.4,0.00014899,2]
[426391343,1782340240000,-500.0,0.00014857,2]
[426391372,1782340240000,-500.0,0.00014999,2]
[426391325,1782340240000,-1711.45766129,0.00014012,2]
[426391388,1782340240000,-500.0,0.00014999,2]
[426391411,1782340240000,-500.0,0.00014999,2]
[426391412,1782340240000,-500.0,0.00014999,2]
[426391409,1782340240000,-500.0,0.00014999,2]
[426391413,1782340240000,-500.0,0.00014999,2]
[426391415,1782340240000,-500.0,0.00014999,2]
[426391414,1782340240000,-500.0,0.00014999,2]
[426391416,1782340240000,-500.0,0.00014999,2]
[426391417,1782340240000,-500.0,0.00014999,2]
[426391418,1782340240000,-500.0,0.00014999,2]
[426391419,1782340240000,-500.0,0.00014999,2]
[426391421,1782340240000,-500.0,0.00014999,2]
[426391420,1782340240000,-500.0,0.00014999,2]
[426391410,1782340240000,-500.0,0.00014999,2]
[426391424,1782340240000,-500.0,0.00014999,2]
[426391422,1782340240000,-500.0,0.00014999,2]
[426391426,1782340240000,-1742.33,0.00014999,2]
[426391428,1782340240000,-1742.33,0.00014999,2]
[426391425,1782340240000,-213.23061477,0.00014999,2]
[426391437,1782340240000,-1742.33,0.00014999,2]
[426391427,1782340240000,-1742.33,0.00014999,2]
[426391432,1782340240000,-1742.33,0.00014999,2]
[426391433,1782340240000,-1742.33,0.00014999,2]
[426391438,1782340240000,-1742.33,0.00014999,2]
[426391431,1782340240000,-1742.33,0.00014999,2]
[426391429,1782340240000,-1742.33,0.00014999,2]
[426391430,1782340240000,-1742.33,0.00014999,2]
[426391423,1782340240000,-500.0,0.00014999,2]
[426391407,1782340240000,-500.0,0.00014999,2]
[426391435,1782340240000,-1742.33,0.00014999,2]
[426391405,1782340240000,-500.0,0.00014999,2]
[426391408,1782340240000,-500.0,0.00014999,2]
[426391377,1782340240000,-500.0,0.00014999,2]
[426391379,1782340240000,-479.84,0.00014999,2]
[426391381,1782340240000,-500.0,0.00014999,2]
[426391389,1782340240000,-500.0,0.00014999,2]
[426391386,1782340240000,-500.0,0.00014999,2]
[426391387,1782340240000,-500.0,0.00014999,2]
[426391384,1782340240000,-500.0,0.00014999,2]
[426391382,1782340240000,-500.0,0.00014999,2]
[426391385,1782340240000,-500.0,0.00014999,2]
[426391380,1782340240000,-500.0,0.00014999,2]
[426391383,1782340240000,-500.0,0.00014999,2]
[426391401,1782340240000,-500.0,0.00014999,2]
[426391390,1782340240000,-500.0,0.00014999,2]
[426391378,1782340240000,-500.0,0.00014999,2]
[426391392,1782340240000,-500.0,0.00014999,2]
[426391406,1782340240000,-509.6,0.00014999,2]
[426391403,1782340240000,-500.0,0.00014999,2]
[426391404,1782340240000,-500.0,0.00014999,2]
[426391402,1782340240000,-500.0,0.00014999,2]
[426391399,1782340240000,-500.0,0.00014999,2]
[426391393,1782340240000,-500.0,0.00014999,2]
[426391391,1782340240000,-500.0,0.00014999,2]
[426391400,1782340240000,-500.0,0.00014999,2]
[426391398,1782340240000,-500.0,0.00014999,2]
[426391397,1782340240000,-500.0,0.00014999,2]
[426391394,1782340240000,-500.0,0.00014999,2]
[426391395,1782340240000,-616.46,0.00014999,2]
[426391396,1782340240000,-500.0,0.00014999,2]
[426391457,1782340241000,-2003.01,0.00014999,2]
[426391450,1782340241000,-2003.01,0.00014999,2]
[426391456,1782340241000,-2003.01,0.00014999,2]
[426391455,1782340241000,-500.0,0.00014999,2]
[426391454,1782340241000,-2003.01,0.00014999,2]
[426391460,1782340241000,-500.0,0.00014999,2]
[426391451,1782340241000,-500.0,0.00014999,2]
[426391452,1782340241000,-2003.01,0.00014999,2]
[426391441,1782340241000,-1742.33,0.00014999,2]
[426391443,1782340241000,-1742.33,0.00014999,2]
[426391446,1782340241000,-2003.01,0.00014999,2]
[426391447,1782340241000,-500.0,0.00014999,2]
[426391444,1782340241000,-1742.33,0.00014999,2]
[426391453,1782340241000,-500.0,0.00014999,2]
[426391445,1782340241000,-1742.33116483,0.00014999,2]
[426391442,1782340241000,-1742.33,0.00014999,2]
[426391440,1782340241000,-1742.33,0.00014999,2]
[426391439,1782340241000,-1742.33,0.00014999,2]
[426391449,1782340241000,-500.0,0.00014999,2]
[426391448,1782340241000,-2003.01,0.00014999,2]
[426391459,1782340241000,-2003.01,0.00014999,2]
[426391462,1782340241000,-2003.01,0.00014999,2]
[426391481,1782340241000,-306.90992632,0.00015,2]
[426391480,1782340241000,-677.34862984,0.00015,2]
[426391458,1782340241000,-500.0,0.00014999,2]
[426391478,1782340241000,-2200.24674159,0.00015,2]
[426391477,1782340241000,-259.44,0.00015,2]
[426391473,1782340241000,-2003.17568917,0.00014999,2]
[426391476,1782340241000,-1201861.09187259,0.00015,2]
[426391474,1782340241000,-2877798.1074079,0.00015,2]
[426391475,1782340241000,-532.48,0.00015,2]
[426391479,1782340241000,-993.29572744,0.00015,2]
[426391468,1782340241000,-2003.01,0.00014999,2]
[426391472,1782340241000,-2003.01,0.00014999,2]
[426391470,1782340241000,-2003.01,0.00014999,2]
[426391471,1782340241000,-2003.01,0.00014999,2]
[426391465,1782340241000,-513.71447224,0.00014999,2]
[426391464,1782340241000,-2003.01,0.00014999,2]
[426391463,1782340241000,-500.0,0.00014999,2]
[426391467,1782340241000,-2003.01,0.00014999,2]
[426391466,1782340241000,-2003.01,0.00014999,2]
[426391469,1782340241000,-2003.01,0.00014999,2]
[426391483,1782340243000,-1481.26883616,0.00015,2]
[426391482,1782340243000,-279004.16160611,0.00015,2]
[426391497,1782340244000,150.82,0.00030561,30]
[426391512,1782340246000,-672.88866102,0.00015,2]
[426391510,1782340246000,-517853.65417822,0.00015,2]
[426391513,1782340246000,-2885.66916516,0.00015,2]
[426391511,1782340246000,-54127.34582178,0.00015,2]
[426391523,1782340307000,160.5,0.00030561,30]
[426391524,1782340425000,156.0,0.00028716,30]
[426391525,1782340426000,156.0,0.00029716,30]
[426391526,1782340428000,156.0,0.00030716,30]
[426391529,1782340478000,175.0,0.00028716,30]
[426391530,1782340479000,175.0,0.00029716,30]
[426391531,1782340480000,175.0,0.00030716,30]
[426391532,1782340482000,500.0,0.00030136,120]
[426391533,1782340483000,500.0,0.00030136,120]
[426391536,1782340483000,500.0,0.00030136,120]
[426391535,1782340483000,500.0,0.00030136,120]
[426391534,1782340483000,500.0,0.00030136,120]
[426391538,1782340484000,500.0,0.00030136,120]
[426391537,1782340484000,500.0,0.00030136,120]
[426391539,1782340502000,633.47703345,0.00030137,30]
[426391540,1782340503000,633.47703345,0.00030746,30]
[426391541,1782340504000,633.47703345,0.00031355,30]
[426391543,1782340549000,478.0,0.00028716,30]
[426391544,1782340551000,478.0,0.00029716,30]
[426391545,1782340552000,478.0,0.00030716,30]
[426391548,1782340555000,150.0,0.00031355,30]
[426391547,1782340555000,150.0,0.00030746,30]
[426391546,1782340555000,150.0,0.00030137,30]
[426391550,1782340591000,622.0,0.00028716,30]
[426391551,1782340592000,622.0,0.00029716,30]
[426391552,1782340594000,622.0,0.00030716,30]
[426391553,1782340604000,150.0,0.00030137,30]
[426391554,1782340604000,150.0,0.00030746,30]
[426391555,1782340605000,150.0,0.00031355,30]
[426391557,1782340629000,1001.0,0.00030493,120]
[426391558,1782340640000,151.0,0.00028716,30]
[426391559,1782340641000,156.0,0.00029716,30]
[426391561,1782340659000,281.34524998,0.00030746,30]
[426391560,1782340659000,150.0,0.00030137,30]
[426391562,1782340680000,250.0,0.00031507,30]
[426391563,1782340692000,250.04,0.00031507,30]
[426391564,1782340710000,292.0,0.00028716,30]
[426391565,1782340711000,292.0,0.00029716,30]
[426391566,1782340712000,292.0,0.00030716,30]
[426391568,1782340724000,151.1517651,0.00031075,30]
[426391569,1782340747000,153.0,0.00028711,30]
[426391570,1782340749000,153.0,0.00029711,30]
[426391571,1782340750000,153.0,0.00030711,30]
[426391572,1782340771000,154.0,0.00028711,30]
[426391573,1782340773000,154.0,0.00029711,30]
[426391574,1782340774000,154.0,0.00030711,30]
[426391575,1782340780000,3411.24753197,0.00031507,30]
[426391576,1782340815000,456.0,0.00028711,30]
[426391577,1782340816000,456.0,0.00029711,30]
[426391578,1782340817000,456.0,0.00030711,30]
[426391580,1782340876000,185.0,0.00028711,30]
[426391581,1782340877000,185.0,0.00029711,30]
[426391582,1782340879000,185.0,0.00030711,30]
[426391584,1782341184000,165.61,0.000315,30]
[426392021,1782341408000,1001.0,0.00030493,120]
[426392036,1782341431000,-500.0,0.00012231,2]
[426392034,1782341431000,-500.0,0.00012231,2]
[426392041,1782341431000,-357.564,0.00012231,2]
[426392043,1782341431000,-200.0,0.00012358,2]
[426392044,1782341431000,-166.66,0.00012424,2]
[426392042,1782341431000,-1371.67,0.00012232,2]
[426392040,1782341431000,-452.98013742,0.00012231,2]
[426392045,1782341431000,-162.49,0.00012467,2]
[426392037,1782341431000,-500.0,0.00012231,2]
[426392047,1782341431000,-150.0,0.0001255,2]
[426392039,1782341431000,-500.0,0.00012231,2]
[426392033,1782341431000,-353.74158537,0.00012231,2]
[426392029,1782341431000,-174.57,0.00012188,2]
[426392038,1782341431000,-500.0,0.00012231,2]
[426392032,1782341431000,-352.44763752,0.00012231,2]
[426392046,1782341431000,-305.96,0.00012467,2]
[426392030,1782341431000,-417.39,0.00012206,2]
[426392028,1782341431000,-166.66,0.00012183,2]
[426392031,1782341431000,-150.0,0.00012219,2]
[426392027,1782341431000,-166.66,0.00011942,2]
[426392025,1782341431000,-166.68,0.00011828,2]
[426392026,1782341431000,-233.28,0.00011828,2]
[426392024,1782341431000,-166.66,0.00011701,2]
[426392023,1782341431000,-166.66,0.00011459,2]
[426392035,1782341431000,-500.0,0.00012231,2]
[426392050,1782341431000,-615.66277609,0.00012551,2]
[426392071,1782341431000,-1000.0,0.00012552,2]
[426392049,1782341431000,-170.22061046,0.00012551,2]
[426392091,1782341431000,-1000.0,0.00012552,2]
[426392089,1782341431000,-1000.0,0.00012552,2]
[426392080,1782341431000,-1000.0,0.00012552,2]
[426392086,1782341431000,-1000.0,0.00012552,2]
[426392082,1782341431000,-1000.0,0.00012552,2]
[426392078,1782341431000,-1000.0,0.00012552,2]
[426392076,1782341431000,-1000.0,0.00012552,2]
[426392048,1782341431000,-211.05876143,0.00012551,2]
[426392084,1782341431000,-1000.0,0.00012552,2]
[426392072,1782341431000,-1000.0,0.00012552,2]
[426392069,1782341431000,-1000.0,0.00012552,2]
[426392068,1782341431000,-1000.0,0.00012552,2]
[426392074,1782341431000,-1000.0,0.00012552,2]
[426392066,1782341431000,-1000.0,0.00012552,2]
[426392065,1782341431000,-1000.0,0.00012552,2]
[426392053,1782341431000,-500.0,0.00012551,2]
[426392058,1782341431000,-1000.0,0.00012552,2]
[426392055,1782341431000,-323.19762097,0.00012551,2]
[426392057,1782341431000,-199.096,0.00012551,2]
[426392051,1782341431000,-201.87808244,0.00012551,2]
[426392059,1782341431000,-1000.0,0.00012552,2]
[426392062,1782341431000,-335.1983883,0.00012552,2]
[426392060,1782341431000,-1000.0,0.00012552,2]
[426392064,1782341431000,-89.39560438,0.00012552,2]
[426392063,1782341431000,-575.40600732,0.00012552,2]
[426392056,1782341431000,-3204.735,0.00012551,2]
[426392103,1782341432000,-305.96,0.00012778,2]
[426392102,1782341432000,-166.66,0.00012666,2]
[426392100,1782341432000,-1000.0,0.00012552,2]
[426392099,1782341432000,-1000.0,0.00012552,2]
[426392095,1782341432000,-1000.0,0.00012552,2]
[426392098,1782341432000,-1000.0,0.00012552,2]
[426392093,1782341432000,-1000.0,0.00012552,2]
[426392096,1782341432000,-1000.0,0.00012552,2]
[426392104,1782341432000,-300.55,0.00012787,2]
[426392101,1782341432000,-500.0,0.00012565,2]
[426392106,1782341432000,-160.61680065,0.000129,2]
[426392097,1782341432000,-1000.0,0.00012552,2]
[426392107,1782341432000,-2400.0,0.000129,4]
[426392105,1782341432000,-1200.0,0.000128,4]
[426392115,1782341432000,-2098.87402181,0.00012998,2]
[426392114,1782341432000,-88.02675193,0.00012998,2]
[426392113,1782341432000,-216.42324807,0.0001257,2]
[426392117,1782341432000,-4838.00677323,0.00012998,2]
[426392116,1782341432000,-889.73795982,0.00012998,2]
[426392110,1782341432000,-83479.55458693,0.00012998,2]
[426392111,1782341432000,-3356.29530213,0.00012998,2]
[426392108,1782341432000,-305.235,0.00012915,2]
[426392109,1782341432000,-176.84461302,0.00012988,2]
[426392112,1782341432000,-783.58501936,0.00012998,2]
[426392130,1782341437000,-646.23243154,0.00013197,3]
[426392136,1782341437000,-491.97702053,0.00013313,2]
[426392135,1782341437000,-5393.4018805,0.00013298,2]
[426392132,1782341437000,-33326.4581,0.00013298,2]
[426392133,1782341437000,-2000.0,0.00013298,2]
[426392131,1782341437000,-151.0,0.00013297,2]
[426392129,1782341437000,-2500.0,0.00013098,2]
[426392123,1782341437000,-305.96,0.0001309,2]
[426392126,1782341437000,-9210.02462065,0.00013098,2]
[426392125,1782341437000,-487.4098723,0.00013098,2]
[426392124,1782341437000,-253.78107639,0.00013097,2]
[426392122,1782341437000,-172.11,0.00013015,2]
[426392134,1782341437000,-9210.02462057,0.00013298,2]
[426392120,1782341437000,-1404465.91958479,0.00012998,2]
[426392121,1782341437000,-151.0,0.00012998,2]
[426392127,1782341437000,-1050.45040417,0.00013098,2]
[426392137,1782341437000,-305.96,0.00013402,2]
[426392128,1782341437000,-5393.40188058,0.00013098,2]
[426392139,1782341437000,-226.66136262,0.00013488,2]
[426392138,1782341437000,-196.414081,0.00013485,2]
[426392157,1782341437000,-150.0,0.00013522,2]
[426392156,1782341437000,-150.0,0.00013506,2]
[426392153,1782341437000,-5393.4018805,0.00013498,2]
[426392151,1782341437000,-9210.02462057,0.00013498,2]
[426392155,1782341437000,-150.0,0.00013505,2]
[426392149,1782341437000,-150.0,0.00013488,2]
[426392146,1782341437000,-150.0,0.00013488,2]
[426392150,1782341437000,-150.0,0.00013488,2]
[426392147,1782341437000,-150.0,0.00013488,2]
[426392144,1782341437000,-150.0,0.00013488,2]
[426392145,1782341437000,-150.0,0.00013488,2]
[426392143,1782341437000,-150.0,0.00013488,2]
[426392141,1782341437000,-150.0,0.00013488,2]
[426392142,1782341437000,-150.0,0.00013488,2]
[426392148,1782341437000,-150.0,0.00013488,2]
[426392140,1782341437000,-150.0,0.00013488,2]
[426392206,1782341438000,-150.0,0.00013675,2]
[426392235,1782341438000,-500.0,0.00013698,2]
[426392230,1782341438000,-500.0,0.00013698,2]
[426392228,1782341438000,-500.0,0.00013698,2]
[426392226,1782341438000,-500.0,0.00013698,2]
[426392216,1782341438000,-500.0,0.00013698,2]
[426392224,1782341438000,-500.0,0.00013698,2]
[426392218,1782341438000,-500.0,0.00013698,2]
[426392214,1782341438000,-150.0,0.00013694,2]
[426392222,1782341438000,-500.0,0.00013698,2]
[426392212,1782341438000,-150.0,0.00013692,2]
[426392232,1782341438000,-500.0,0.00013698,2]
[426392220,1782341438000,-503.63672194,0.00013698,2]
[426392247,1782341438000,-500.0,0.00013698,2]
[426392250,1782341438000,-500.0,0.00013698,2]
[426392248,1782341438000,-500.0,0.00013698,2]
[426392238,1782341438000,-500.0,0.00013698,2]
[426392245,1782341438000,-500.0,0.00013698,2]
[426392242,1782341438000,-500.0,0.00013698,2]
[426392240,1782341438000,-500.0,0.00013698,2]
[426392251,1782341438000,-500.0,0.00013698,2]
[426392254,1782341438000,-500.0,0.00013698,2]
[426392252,1782341438000,-500.0,0.00013698,2]
[426392258,1782341438000,-542.12,0.00013698,2]
[426392265,1782341438000,-542.12,0.00013698,2]
[426392263,1782341438000,-542.12,0.00013698,2]
[426392261,1782341438000,-542.12,0.00013698,2]
[426392205,1782341438000,-150.0,0.00013673,2]
[426392237,1782341438000,-500.0,0.00013698,2]
[426392203,1782341438000,-150.0,0.0001367,2]
[426392164,1782341438000,-150.0,0.00013556,2]
[426392198,1782341438000,-150.0,0.00013658,2]
[426392158,1782341438000,-150.0,0.00013524,2]
[426392160,1782341438000,-150.0,0.00013539,2]
[426392159,1782341438000,-150.0,0.00013525,2]
[426392161,1782341438000,-150.0,0.00013539,2]
[426392162,1782341438000,-150.0,0.00013543,2]
[426392163,1782341438000,-150.0,0.00013556,2]
[426392271,1782341438000,-500.0,0.00013698,2]
[426392166,1782341438000,-150.0,0.00013562,2]
[426392167,1782341438000,-150.0,0.00013573,2]
[426392165,1782341438000,-150.0,0.00013561,2]
[426392169,1782341438000,-150.0,0.0001358,2]
[426392170,1782341438000,-150.0,0.0001359,2]
[426392168,1782341438000,-150.0,0.00013576,2]
[426392201,1782341438000,-150.0,0.00013664,2]
[426392177,1782341438000,-150.0,0.00013617,2]
[426392173,1782341438000,-150.0,0.00013599,2]
[426392172,1782341438000,-150.0,0.00013597,2]
[426392175,1782341438000,-150.0,0.00013607,2]
[426392179,1782341438000,-150.0,0.00013624,2]
[426392195,1782341438000,-150.0,0.00013654,2]
[426392192,1782341438000,-150.0,0.00013643,2]
[426392183,1782341438000,-150.0,0.00013634,2]
[426392181,1782341438000,-150.0,0.00013624,2]
[426392185,1782341438000,-150.0,0.00013636,2]
[426392190,1782341438000,-255.0,0.00013642,2]
[426392187,1782341438000,-150.0,0.00013641,2]
[426392208,1782341438000,-150.0,0.00013691,2]
[426392210,1782341438000,-150.0,0.00013692,2]
[426392171,1782341438000,-150.0,0.00013591,2]
[426392273,1782341438000,-504.07105771,0.00013698,2]
[426392256,1782341438000,-500.0,0.00013698,2]
[426392267,1782341438000,-542.12,0.00013698,2]
[426392325,1782341438000,-500.0,0.00013698,2]
[426392328,1782341438000,-500.0,0.00013698,2]
[426392327,1782341438000,-500.0,0.00013698,2]
[426392330,1782341438000,-500.0,0.00013698,2]
[426392329,1782341438000,-500.0,0.00013698,2]
[426392331,1782341438000,-500.0,0.00013698,2]
[426392337,1782341438000,-500.0,0.00013698,2]
[426392332,1782341438000,-500.0,0.00013698,2]
[426392333,1782341438000,-500.0,0.00013698,2]
[426392334,1782341438000,-500.0,0.00013698,2]
[426392335,1782341438000,-500.0,0.00013698,2]
[426392336,1782341438000,-500.0,0.00013698,2]
[426392339,1782341438000,-500.0,0.00013698,2]
[426392340,1782341438000,-500.0,0.00013698,2]
[426392341,1782341438000,-500.0,0.00013698,2]
[426392342,1782341438000,-500.0,0.00013698,2]
[426392343,1782341438000,-500.0,0.00013698,2]
[426392344,1782341438000,-500.0,0.00013698,2]
[426392345,1782341438000,-500.0,0.00013698,2]
[426392350,1782341438000,-500.0,0.00013698,2]
[426392346,1782341438000,-500.0,0.00013698,2]
[426392349,1782341438000,-532.63504897,0.00013698,2]
[426392348,1782341438000,-500.0,0.00013698,2]
[426392347,1782341438000,-500.0,0.00013698,2]
[426392351,1782341438000,-500.0,0.00013698,2]
[426392352,1782341438000,-500.0,0.00013698,2]
[426392353,1782341438000,-500.0,0.00013698,2]
[426392269,1782341438000,-542.12,0.00013698,2]
[426392354,1782341438000,-500.0,0.00013698,2]
[426392326,1782341438000,-500.0,0.00013698,2]
[426392324,1782341438000,-500.0,0.00013698,2]
[426392338,1782341438000,-500.0,0.00013698,2]
[426392320,1782341438000,-500.0,0.00013698,2]
[426392275,1782341438000,-500.0,0.00013698,2]
[426392322,1782341438000,-500.0,0.00013698,2]
[426392287,1782341438000,-500.0,0.00013698,2]
[426392279,1782341438000,-500.0,0.00013698,2]
[426392277,1782341438000,-500.0,0.00013698,2]
[426392281,1782341438000,-500.0,0.00013698,2]
[426392283,1782341438000,-500.0,0.00013698,2]
[426392290,1782341438000,-500.0,0.00013698,2]
[426392300,1782341438000,-500.0,0.00013698,2]
[426392292,1782341438000,-518.89469315,0.00013698,2]
[426392294,1782341438000,-500.0,0.00013698,2]
[426392296,1782341438000,-500.0,0.00013698,2]
[426392298,1782341438000,-500.0,0.00013698,2]
[426392302,1782341438000,-500.0,0.00013698,2]
[426392285,1782341438000,-500.0,0.00013698,2]
[426392307,1782341438000,-500.0,0.00013698,2]
[426392305,1782341438000,-626.51114016,0.00013698,2]
[426392319,1782341438000,-500.0,0.00013698,2]
[426392321,1782341438000,-500.0,0.00013698,2]
[426392318,1782341438000,-500.0,0.00013698,2]
[426392313,1782341438000,-500.0,0.00013698,2]
[426392316,1782341438000,-500.0,0.00013698,2]
[426392323,1782341438000,-500.0,0.00013698,2]
[426392314,1782341438000,-500.0,0.00013698,2]
[426392312,1782341438000,-500.0,0.00013698,2]
[426392317,1782341438000,-500.0,0.00013698,2]
[426392309,1782341438000,-500.0,0.00013698,2]
[426392315,1782341438000,-500.0,0.00013698,2]
[426392311,1782341438000,-500.0,0.00013698,2]
[426392397,1782341439000,-520.11,0.00013698,2]
[426392398,1782341439000,-520.11,0.00013698,2]
[426392400,1782341439000,-520.11,0.00013698,2]
[426392391,1782341439000,-500.0,0.00013698,2]
[426392386,1782341439000,-500.0,0.00013698,2]
[426392392,1782341439000,-500.0,0.00013698,2]
[426392394,1782341439000,-500.0,0.00013698,2]
[426392393,1782341439000,-500.0,0.00013698,2]
[426392390,1782341439000,-500.0,0.00013698,2]
[426392389,1782341439000,-500.0,0.00013698,2]
[426392399,1782341439000,-520.11,0.00013698,2]
[426392388,1782341439000,-500.0,0.00013698,2]